[Event "GrandPrix_30.05"]
[Site "Chess.com"]
[Date "2020.05.30"]
[Round "1"]
[White "aleksandrovaleksei"]
[Black "Frozygul"]
[Result "1-0"]
[WhiteElo "2498"]
[BlackElo "2117"]
[TimeControl "600+2"]
[EndTime "8:21:22 PDT"]
[Termination "aleksandrovaleksei won by resignation"]

1. d4 {[%clk 0:10:01.2]} 1... d5 {[%clk 0:10:00.3]} 2. c4 {[%clk 0:10:01.5]}
2... dxc4 {[%clk 0:10:02.2]} 3. Nf3 {[%clk 0:10:01.8]} 3... Nf6 {[%clk
0:10:03.2]} 4. e3 {[%clk 0:10:02.6]} 4... e6 {[%clk 0:10:04.6]} 5. Bxc4 {[%clk
0:10:02.9]} 5... a6 {[%clk 0:10:06.5]} 6. a3 {[%clk 0:10:03]} 6... b5 {[%clk
0:10:06.9]} 7. Ba2 {[%clk 0:10:03.2]} 7... c5 {[%clk 0:10:07.3]} 8. O-O {[%clk
0:10:03.5]} 8... Bb7 {[%clk 0:10:07.6]} 9. Qe2 {[%clk 0:10:04]} 9... Nbd7 {[%clk
0:10:08.6]} 10. Rd1 {[%clk 0:10:04.7]} 10... Rc8 {[%clk 0:10:09.8]} 11. Nc3
{[%clk 0:10:04.5]} 11... Qc7 {[%clk 0:10:10.3]} 12. d5 {[%clk 0:09:22]} 12...
exd5 {[%clk 0:10:04.9]} 13. Nxd5 {[%clk 0:09:22.7]} 13... Nxd5 {[%clk
0:10:04.6]} 14. Bxd5 {[%clk 0:09:23.8]} 14... Bxd5 {[%clk 0:09:36]} 15. Rxd5
{[%clk 0:09:22.6]} 15... Be7 {[%clk 0:09:18.1]} 16. e4 {[%clk 0:09:06.1]} 16...
O-O {[%clk 0:09:16.3]} 17. e5 {[%clk 0:09:07.1]} 17... Nb6 {[%clk 0:08:39.9]}
18. Rd1 {[%clk 0:09:05.8]} 18... Rfd8 {[%clk 0:07:56]} 19. Bg5 {[%clk
0:08:47.1]} 19... Bxg5 {[%clk 0:07:38]} 20. Nxg5 {[%clk 0:08:47.7]} 20... Qe7
{[%clk 0:07:39.9]} 21. f4 {[%clk 0:08:41.4]} 21... f6 {[%clk 0:06:30.8]} 22. Nf3
{[%clk 0:08:41.2]} 22... fxe5 {[%clk 0:06:31.3]} 23. fxe5 {[%clk 0:08:41.7]}
23... Nc4 {[%clk 0:06:15.4]} 24. a4 {[%clk 0:08:21.9]} 24... Rxd1+ {[%clk
0:05:08.3]} 25. Rxd1 {[%clk 0:08:20.4]} 25... Re8 {[%clk 0:05:09.8]} 26. axb5
{[%clk 0:08:17.3]} 26... axb5 {[%clk 0:05:11.7]} 27. Re1 {[%clk 0:08:09.4]}
27... Qb7 {[%clk 0:03:33.3]} 28. b3 {[%clk 0:07:47.5]} 28... Na5 {[%clk
0:03:17]} 29. Qd3 {[%clk 0:06:15.4]} 29... c4 {[%clk 0:03:03.7]} 30. bxc4 {[%clk
0:06:14]} 30... bxc4 {[%clk 0:03:02.5]} 31. Qd4 {[%clk 0:04:51.1]} 31... Qc6
{[%clk 0:01:54.7]} 32. e6 {[%clk 0:02:43.7]} 32... c3 {[%clk 0:00:30.1]} 33. Qf4
{[%clk 0:02:12.1]} 33... h6 {[%clk 0:00:16.9]} 34. Qf7+ {[%clk 0:02:01.3]} 34...
Kh7 {[%clk 0:00:17.3]} 35. Qf5+ {[%clk 0:01:57.4]} 35... Kg8 {[%clk 0:00:16.3]}
36. Qxa5 {[%clk 0:01:56.5]} 36... Rxe6 {[%clk 0:00:17.5]} 37. Rxe6 {[%clk
0:01:49.5]} 37... Qxe6 {[%clk 0:00:19.4]} 38. Qxc3 {[%clk 0:01:49.8]} 38... Qe2
{[%clk 0:00:19.6]} 39. Qe1 {[%clk 0:01:48.7]} 39... Qb5 {[%clk 0:00:18.9]} 40.
h3 {[%clk 0:01:48.8]} 40... Kh7 {[%clk 0:00:19.1]} 41. Qe4+ {[%clk 0:01:49]}
41... Kg8 {[%clk 0:00:20.3]} 42. Ne5 {[%clk 0:01:48.8]} 42... Qb1+ {[%clk
0:00:12.9]} 43. Qxb1 {[%clk 0:01:48.7]} 1-0

[Event "GrandPrix_30.05"]
[Site "Chess.com"]
[Date "2020.05.30"]
[Round "1"]
[White "Mizner"]
[Black "kpio91"]
[Result "0-1"]
[WhiteElo "2136"]
[BlackElo "2531"]
[TimeControl "600+2"]
[EndTime "8:21:25 PDT"]
[Termination "kpio91 won by resignation"]

1. e4 {[%clk 0:09:59.6]} 1... c5 {[%clk 0:10:00.9]} 2. Nf3 {[%clk 0:10:00.3]}
2... d6 {[%clk 0:10:02.2]} 3. d4 {[%clk 0:10:01]} 3... cxd4 {[%clk 0:10:03]} 4.
Nxd4 {[%clk 0:10:02.9]} 4... Nf6 {[%clk 0:10:04.1]} 5. f3 {[%clk 0:10:03.8]}
5... e5 {[%clk 0:09:42.4]} 6. Nb3 {[%clk 0:10:03.6]} 6... d5 {[%clk 0:09:42.8]}
7. Bg5 {[%clk 0:10:03.5]} 7... d4 {[%clk 0:09:42.4]} 8. c3 {[%clk 0:10:03.6]}
8... Nc6 {[%clk 0:09:42.1]} 9. Bb5 {[%clk 0:10:01]} 9... h6 {[%clk 0:09:28]} 10.
Bxf6 {[%clk 0:09:30.9]} 10... Qxf6 {[%clk 0:09:28.1]} 11. cxd4 {[%clk
0:09:32.6]} 11... a6 {[%clk 0:09:22.3]} 12. dxe5 {[%clk 0:09:22.4]} 12... Qxe5
{[%clk 0:09:21.7]} 13. Bxc6+ {[%clk 0:08:59.1]} 13... bxc6 {[%clk 0:09:22.4]}
14. Qd4 {[%clk 0:09:00.5]} 14... Qg5 {[%clk 0:08:54.2]} 15. O-O {[%clk
0:08:58.7]} 15... Be6 {[%clk 0:08:13.6]} 16. N1d2 {[%clk 0:07:36.4]} 16... Be7
{[%clk 0:07:34.9]} 17. f4 {[%clk 0:06:01.5]} 17... Qb5 {[%clk 0:07:32.4]} 18.
Qxg7 {[%clk 0:05:36.9]} 18... O-O-O {[%clk 0:07:32.4]} 19. f5 {[%clk 0:05:34.4]}
19... Rhg8 {[%clk 0:07:11.8]} 20. Qc3 {[%clk 0:04:57.6]} 20... Bb4 {[%clk
0:06:21.9]} 21. Qh3 {[%clk 0:03:44.8]} 21... Bd7 {[%clk 0:04:40.2]} 22. Rac1
{[%clk 0:03:28.3]} 22... Kb8 {[%clk 0:04:34.9]} 23. Nc4 {[%clk 0:03:24.3]} 23...
Bc8 {[%clk 0:03:54.4]} 24. Qxh6 {[%clk 0:03:10.1]} 24... Rd3 {[%clk 0:03:34.3]}
25. Qf4+ {[%clk 0:02:50.4]} 25... Kb7 {[%clk 0:03:10.6]} 26. a4 {[%clk
0:02:22.7]} 26... Qxa4 {[%clk 0:02:20.5]} 27. Nca5+ {[%clk 0:02:16.1]} 27... Ka8
{[%clk 0:02:21.3]} 28. Nxc6 {[%clk 0:01:12.8]} 28... Bb7 {[%clk 0:02:13.6]} 29.
Nbd4 {[%clk 0:00:54]} 29... Bd2 {[%clk 0:02:02.4]} 30. Qc7 {[%clk 0:00:51.1]}
30... Bxc1 {[%clk 0:01:42.6]} 31. Rxc1 {[%clk 0:00:06.2]} 31... Rxd4 {[%clk
0:01:00.8]} 0-1

[Event "GrandPrix_30.05"]
[Site "Chess.com"]
[Date "2020.05.30"]
[Round "1"]
[White "Kezin_Roman"]
[Black "Karacsonyi_Gellert"]
[Result "0-1"]
[WhiteElo "2503"]
[BlackElo "2210"]
[TimeControl "600+2"]
[EndTime "8:21:34 PDT"]
[Termination "Karacsonyi_Gellert won by resignation"]

1. d4 {[%clk 0:10:01.4]} 1... Nf6 {[%clk 0:10:00.4]} 2. c4 {[%clk 0:10:01.1]}
2... e6 {[%clk 0:10:01.4]} 3. g3 {[%clk 0:10:01.7]} 3... d5 {[%clk 0:10:01.9]}
4. Bg2 {[%clk 0:10:02]} 4... dxc4 {[%clk 0:10:02.2]} 5. Nf3 {[%clk 0:10:01.6]}
5... Bd7 {[%clk 0:10:03.4]} 6. Ne5 {[%clk 0:10:00.5]} 6... Bc6 {[%clk
0:10:04.9]} 7. Nxc6 {[%clk 0:10:01]} 7... Nxc6 {[%clk 0:10:06.8]} 8. O-O {[%clk
0:10:00.6]} 8... Qd7 {[%clk 0:10:07.8]} 9. e3 {[%clk 0:09:54.1]} 9... O-O-O
{[%clk 0:10:07.6]} 10. Qa4 {[%clk 0:09:49.8]} 10... Nd5 {[%clk 0:10:06.9]} 11.
Qxc4 {[%clk 0:09:50.3]} 11... h5 {[%clk 0:10:06.1]} 12. Bd2 {[%clk 0:09:44.4]}
12... h4 {[%clk 0:10:06.6]} 13. Rc1 {[%clk 0:09:08.7]} 13... hxg3 {[%clk
0:10:06.4]} 14. hxg3 {[%clk 0:09:10.6]} 14... f5 {[%clk 0:10:00.7]} 15. b4
{[%clk 0:09:02]} 15... g5 {[%clk 0:10:01.7]} 16. b5 {[%clk 0:09:00.4]} 16...
Nce7 {[%clk 0:10:02.7]} 17. a4 {[%clk 0:08:43]} 17... f4 {[%clk 0:09:49.3]} 18.
a5 {[%clk 0:07:21]} 18... fxe3 {[%clk 0:09:38.6]} 19. fxe3 {[%clk 0:07:20.2]}
19... Nf5 {[%clk 0:09:26.3]} 20. b6 {[%clk 0:07:06.3]} 20... Qh7 {[%clk
0:08:37.4]} 21. Qxc7+ {[%clk 0:01:11.3]} 21... Nxc7 {[%clk 0:08:18.9]} 22. Rxc7+
{[%clk 0:01:13.2]} 22... Qxc7 {[%clk 0:08:08.2]} 23. bxc7 {[%clk 0:01:15.1]}
23... Kxc7 {[%clk 0:08:09.8]} 24. Nc3 {[%clk 0:01:15.3]} 24... Nxg3 {[%clk
0:07:37.9]} 25. Rb1 {[%clk 0:01:08.3]} 25... b6 {[%clk 0:06:06.9]} 26. Nb5+
{[%clk 0:00:54.8]} 26... Kd7 {[%clk 0:06:04.6]} 27. Nxa7 {[%clk 0:00:55.4]}
27... Bd6 {[%clk 0:05:49.7]} 28. Rxb6 {[%clk 0:00:36.2]} 28... Rdf8 {[%clk
0:05:41.5]} 29. Rxd6+ {[%clk 0:00:08]} 29... Kxd6 {[%clk 0:05:24.8]} 30. Bb4+
{[%clk 0:00:09.3]} 30... Kd7 {[%clk 0:05:21.4]} 31. Bxf8 {[%clk 0:00:05.9]}
31... Rxf8 {[%clk 0:05:23.3]} 32. Bc6+ {[%clk 0:00:03.5]} 32... Kc7 {[%clk
0:05:16.7]} 33. Kg2 {[%clk 0:00:02.9]} 33... Nf5 {[%clk 0:05:18.2]} 34. Be4
{[%clk 0:00:03.5]} 34... Nxe3+ {[%clk 0:05:17.3]} 35. Kg3 {[%clk 0:00:04.8]}
35... Nf5+ {[%clk 0:05:00.7]} 36. Kg4 {[%clk 0:00:03.9]} 36... Nxd4 {[%clk
0:04:26.2]} 37. Kxg5 {[%clk 0:00:04.8]} 37... e5 {[%clk 0:02:20.3]} 38. Kg6
{[%clk 0:00:05.3]} 38... Rd8 {[%clk 0:01:49.2]} 39. Kf6 {[%clk 0:00:05.1]} 39...
Kb8 {[%clk 0:01:44.9]} 40. Kxe5 {[%clk 0:00:03]} 40... Kxa7 {[%clk 0:01:44.3]}
41. Bd5 {[%clk 0:00:04.9]} 41... Nb5 {[%clk 0:01:43.3]} 42. Bc4 {[%clk
0:00:05.8]} 42... Ka6 {[%clk 0:01:43.7]} 0-1

[Event "GrandPrix_30.05"]
[Site "Chess.com"]
[Date "2020.05.30"]
[Round "1"]
[White "TheEternalPatzer"]
[Black "Nuvas"]
[Result "1-0"]
[WhiteElo "2078"]
[BlackElo "2257"]
[TimeControl "600+2"]
[EndTime "8:21:34 PDT"]
[Termination "TheEternalPatzer won by resignation"]

1. c4 {[%clk 0:10:00.6]} 1... e5 {[%clk 0:10:00.3]} 2. Nc3 {[%clk 0:09:59.9]}
2... Nf6 {[%clk 0:10:01.1]} 3. Nf3 {[%clk 0:10:00]} 3... Nc6 {[%clk 0:10:01.6]}
4. e3 {[%clk 0:10:00.5]} 4... Bb4 {[%clk 0:10:02]} 5. Qc2 {[%clk 0:10:00.9]}
5... Bxc3 {[%clk 0:09:58.6]} 6. bxc3 {[%clk 0:09:59.8]} 6... e4 {[%clk 0:09:13]}
7. Ng5 {[%clk 0:09:58.6]} 7... Qe7 {[%clk 0:09:11.8]} 8. f3 {[%clk 0:09:43.2]}
8... exf3 {[%clk 0:09:05.1]} 9. Nxf3 {[%clk 0:09:42]} 9... O-O {[%clk 0:08:15]}
10. Be2 {[%clk 0:09:38.3]} 10... d6 {[%clk 0:07:49.1]} 11. O-O {[%clk
0:09:37.8]} 11... Bg4 {[%clk 0:07:36.7]} 12. d3 {[%clk 0:09:27.9]} 12... d5
{[%clk 0:06:53.5]} 13. cxd5 {[%clk 0:09:18]} 13... Nxd5 {[%clk 0:06:54.3]} 14.
e4 {[%clk 0:09:18]} 14... Qc5+ {[%clk 0:06:55.2]} 15. Kh1 {[%clk 0:07:32.9]}
15... Qxc3 {[%clk 0:06:16.8]} 16. Qb1 {[%clk 0:07:32.8]} 16... Nb6 {[%clk
0:05:45.2]} 17. Bb2 {[%clk 0:07:23.8]} 17... Qa5 {[%clk 0:05:46.2]} 18. a4
{[%clk 0:06:01.7]} 18... Rad8 {[%clk 0:05:32]} 19. Qc1 {[%clk 0:05:57.8]} 19...
Bxf3 {[%clk 0:03:48.5]} 20. Rxf3 {[%clk 0:05:57.2]} 20... Nd4 {[%clk 0:03:47.3]}
21. Rg3 {[%clk 0:05:28.9]} 21... Qe5 {[%clk 0:01:26.3]} 22. a5 {[%clk
0:05:04.3]} 22... Nc8 {[%clk 0:01:05.5]} 23. Ra4 {[%clk 0:03:41.1]} 23... c5
{[%clk 0:00:55.8]} 24. Rg5 {[%clk 0:03:37.3]} 24... Qe7 {[%clk 0:00:55.4]} 25.
Bg4 {[%clk 0:02:50.8]} 25... b6 {[%clk 0:00:51.7]} 26. Rc4 {[%clk 0:02:03.6]}
26... f6 {[%clk 0:00:44.6]} 27. Rd5 {[%clk 0:01:56.9]} 27... Rxd5 {[%clk
0:00:42.3]} 28. exd5 {[%clk 0:01:58.8]} 28... Nd6 {[%clk 0:00:42]} 29. Bxd4
{[%clk 0:01:50.6]} 29... Nxc4 {[%clk 0:00:19.7]} 30. Qxc4 {[%clk 0:01:42]} 30...
f5 {[%clk 0:00:21.2]} 31. Bf3 {[%clk 0:01:32.1]} 31... Kh8 {[%clk 0:00:13.7]}
32. Bf2 {[%clk 0:01:29.3]} 32... Qe5 {[%clk 0:00:14.5]} 33. h3 {[%clk
0:01:27.7]} 33... Re8 {[%clk 0:00:15.3]} 34. axb6 {[%clk 0:01:23.3]} 34... axb6
{[%clk 0:00:14.8]} 35. Qb5 {[%clk 0:01:21.8]} 35... Qa1+ {[%clk 0:00:14.6]} 36.
Kh2 {[%clk 0:01:22.3]} 36... Qe5+ {[%clk 0:00:15.9]} 37. Bg3 {[%clk 0:01:22.4]}
37... f4 {[%clk 0:00:17.4]} 38. Bf2 {[%clk 0:01:22.8]} 38... Rb8 {[%clk
0:00:08.8]} 39. Qc6 {[%clk 0:01:22.6]} 1-0

[Event "GrandPrix_30.05"]
[Site "Chess.com"]
[Date "2020.05.30"]
[Round "1"]
[White "nikosgal"]
[Black "WoodlandMagic"]
[Result "0-1"]
[WhiteElo "2286"]
[BlackElo "2094"]
[TimeControl "600+2"]
[EndTime "8:21:36 PDT"]
[Termination "WoodlandMagic won by resignation"]

1. d4 {[%clk 0:10:00]} 1... d5 {[%clk 0:09:50.9]} 2. c4 {[%clk 0:10:00.6]} 2...
c6 {[%clk 0:09:42]} 3. cxd5 {[%clk 0:09:59]} 3... cxd5 {[%clk 0:09:41.8]} 4. Nc3
{[%clk 0:10:00.6]} 4... Nf6 {[%clk 0:09:35.3]} 5. Bf4 {[%clk 0:09:59.8]} 5...
Nc6 {[%clk 0:09:34.8]} 6. e3 {[%clk 0:10:00.3]} 6... Bf5 {[%clk 0:09:31.1]} 7.
Rc1 {[%clk 0:09:58.3]} 7... Rc8 {[%clk 0:09:28.1]} 8. f3 {[%clk 0:09:53.4]} 8...
h5 {[%clk 0:08:55.8]} 9. Qb3 {[%clk 0:08:26.4]} 9... Na5 {[%clk 0:08:50.1]} 10.
Bb5+ {[%clk 0:08:26.2]} 10... Bd7 {[%clk 0:08:45.4]} 11. Qa4 {[%clk 0:08:26]}
11... a6 {[%clk 0:08:17.6]} 12. Bxd7+ {[%clk 0:08:22.4]} 12... Nxd7 {[%clk
0:08:18.1]} 13. b4 {[%clk 0:08:08.3]} 13... Nc6 {[%clk 0:07:18.1]} 14. Nxd5
{[%clk 0:07:07]} 14... e6 {[%clk 0:07:05.9]} 15. Nc3 {[%clk 0:07:07.9]} 15...
Nxb4 {[%clk 0:06:50.8]} 16. Qd1 {[%clk 0:06:58.1]} 16... Qa5 {[%clk 0:05:24.2]}
17. Qd2 {[%clk 0:06:46.4]} 17... Nd5 {[%clk 0:05:06.4]} 18. Nge2 {[%clk
0:03:41.1]} 18... Bb4 {[%clk 0:05:02.8]} 19. O-O {[%clk 0:03:42.2]} 19... Nxc3
{[%clk 0:03:54.3]} 20. Kh1 {[%clk 0:03:42.4]} 20... O-O {[%clk 0:03:41.9]} 21.
Nxc3 {[%clk 0:03:43.4]} 21... Bxc3 {[%clk 0:03:32]} 22. Qf2 {[%clk 0:03:44.5]}
22... Bb4 {[%clk 0:03:06.3]} 23. Qg3 {[%clk 0:03:42.6]} 23... Be7 {[%clk
0:03:00]} 24. e4 {[%clk 0:03:33]} 24... Rfe8 {[%clk 0:02:31.9]} 25. h4 {[%clk
0:03:21.4]} 25... Bf6 {[%clk 0:02:07.1]} 26. e5 {[%clk 0:03:17]} 26... Be7
{[%clk 0:02:06.8]} 27. Bh6 {[%clk 0:03:12.4]} 27... g6 {[%clk 0:02:04.3]} 28.
Rcd1 {[%clk 0:03:11.8]} 28... Qd5 {[%clk 0:02:03.5]} 29. f4 {[%clk 0:03:11.4]}
29... Rc4 {[%clk 0:01:46.9]} 30. f5 {[%clk 0:03:06]} 30... exf5 {[%clk
0:01:44.6]} 31. Rxf5 {[%clk 0:02:51.4]} 31... Nf8 {[%clk 0:01:08.8]} 32. Be3
{[%clk 0:02:40.9]} 32... Rc3 {[%clk 0:00:54.7]} 33. Rf3 {[%clk 0:02:22.5]} 33...
Qe4 {[%clk 0:00:50.1]} 34. Bf4 {[%clk 0:02:06.8]} 34... Rxf3 {[%clk 0:00:50.1]}
35. gxf3 {[%clk 0:02:08.7]} 35... Qd5 {[%clk 0:00:48.4]} 36. Be3 {[%clk
0:02:01.7]} 36... Ne6 {[%clk 0:00:49]} 37. Kh2 {[%clk 0:02:00.7]} 37... Rc8
{[%clk 0:00:48.2]} 38. Rd2 {[%clk 0:02:01.7]} 38... Rc3 {[%clk 0:00:47.1]} 39.
Re2 {[%clk 0:00:57.2]} 39... Nxd4 {[%clk 0:00:47.4]} 0-1

[Event "GrandPrix_30.05"]
[Site "Chess.com"]
[Date "2020.05.30"]
[Round "1"]
[White "Alex_Krayz"]
[Black "francyIM"]
[Result "1/2-1/2"]
[WhiteElo "2194"]
[BlackElo "2570"]
[TimeControl "600+2"]
[EndTime "8:21:39 PDT"]
[Termination "Game drawn by repetition"]

1. e4 {[%clk 0:09:59.1]} 1... e5 {[%clk 0:09:59.6]} 2. Nf3 {[%clk 0:09:58.5]}
2... Nc6 {[%clk 0:09:59.9]} 3. Bb5 {[%clk 0:09:58.1]} 3... a6 {[%clk 0:09:59.8]}
4. Ba4 {[%clk 0:09:58.2]} 4... d6 {[%clk 0:09:59.8]} 5. c3 {[%clk 0:09:56.5]}
5... g6 {[%clk 0:09:55.5]} 6. O-O {[%clk 0:09:49.3]} 6... Bg7 {[%clk 0:09:54.2]}
7. d4 {[%clk 0:09:41.8]} 7... Bd7 {[%clk 0:09:54.3]} 8. Re1 {[%clk 0:09:22.9]}
8... Nf6 {[%clk 0:09:51.1]} 9. h3 {[%clk 0:09:20.9]} 9... O-O {[%clk 0:09:49.9]}
10. Bb3 {[%clk 0:09:02.5]} 10... h6 {[%clk 0:09:44.3]} 11. Nbd2 {[%clk 0:08:52]}
11... Re8 {[%clk 0:09:40.3]} 12. dxe5 {[%clk 0:08:39.7]} 12... Nxe5 {[%clk
0:09:33.4]} 13. Nxe5 {[%clk 0:08:23.7]} 13... dxe5 {[%clk 0:08:12.5]} 14. Qf3
{[%clk 0:08:12.7]} 14... Be6 {[%clk 0:07:55]} 15. Nc4 {[%clk 0:08:05.2]} 15...
b5 {[%clk 0:07:34.2]} 16. Ne3 {[%clk 0:07:45.9]} 16... Bxb3 {[%clk 0:06:14.4]}
17. axb3 {[%clk 0:07:44.1]} 17... Qd3 {[%clk 0:06:14.3]} 18. Rd1 {[%clk
0:07:12.9]} 18... Qxe4 {[%clk 0:06:10.1]} 19. Qxe4 {[%clk 0:07:12.5]} 19... Nxe4
{[%clk 0:06:12]} 20. Nd5 {[%clk 0:07:00]} 20... Nc5 {[%clk 0:04:14.4]} 21. Nxc7
{[%clk 0:06:29.2]} 21... Nxb3 {[%clk 0:04:00.7]} 22. Nxe8 {[%clk 0:04:23]} 22...
Nxa1 {[%clk 0:03:51.2]} 23. Nxg7 {[%clk 0:04:22.6]} 23... Kxg7 {[%clk
0:03:46.6]} 24. Bxh6+ {[%clk 0:04:22.6]} 24... Kxh6 {[%clk 0:03:48.5]} 25. Rxa1
{[%clk 0:04:22.6]} 25... Kg5 {[%clk 0:03:49.7]} 26. Kf1 {[%clk 0:04:22.7]} 26...
Kf4 {[%clk 0:03:49.9]} 27. Ra5 {[%clk 0:04:20.6]} 27... Ke4 {[%clk 0:03:49.4]}
28. Ke2 {[%clk 0:04:19.8]} 28... Kd5 {[%clk 0:03:49.9]} 29. Kd3 {[%clk 0:04:15]}
29... Kc5 {[%clk 0:03:26.9]} 30. b4+ {[%clk 0:03:45.9]} 30... Kb6 {[%clk
0:03:24.1]} 31. Ke4 {[%clk 0:03:38.1]} 31... Rc8 {[%clk 0:03:12.4]} 32. Ra3
{[%clk 0:03:34.7]} 32... f6 {[%clk 0:03:12.4]} 33. h4 {[%clk 0:02:08.8]} 33...
Rc4+ {[%clk 0:03:08.6]} 34. Kd5 {[%clk 0:02:06]} 34... Rxh4 {[%clk 0:03:09.1]}
35. Ke6 {[%clk 0:02:06.9]} 35... Rf4 {[%clk 0:03:09.8]} 36. Ra2 {[%clk
0:02:06.3]} 36... g5 {[%clk 0:03:04.4]} 37. Rd2 {[%clk 0:02:05]} 37... g4 {[%clk
0:03:03.1]} 38. Rd6+ {[%clk 0:01:53.8]} 38... Kb7 {[%clk 0:03:01.1]} 39. Ke7
{[%clk 0:01:51]} 39... Rc4 {[%clk 0:02:27]} 40. Rd7+ {[%clk 0:01:48.6]} 40...
Kb6 {[%clk 0:01:56.9]} 41. Rd6+ {[%clk 0:01:44.6]} 41... Kb7 {[%clk 0:00:41.2]}
42. Rd7+ {[%clk 0:01:35.6]} 42... Kb6 {[%clk 0:00:10.6]} 43. Rd6+ {[%clk
0:01:33.9]} 43... Kb7 {[%clk 0:00:11.4]} 1/2-1/2

[Event "GrandPrix_30.05"]
[Site "Chess.com"]
[Date "2020.05.30"]
[Round "1"]
[White "Saxar85"]
[Black "AliKa2810"]
[Result "1-0"]
[WhiteElo "2510"]
[BlackElo "2126"]
[TimeControl "600+2"]
[EndTime "8:21:46 PDT"]
[Termination "Saxar85 won by resignation"]

1. Nf3 {[%clk 0:09:59]} 1... Nf6 {[%clk 0:09:58.9]} 2. g3 {[%clk 0:09:57.8]}
2... g6 {[%clk 0:09:58.6]} 3. b3 {[%clk 0:09:58.1]} 3... Bg7 {[%clk 0:09:58.8]}
4. Bb2 {[%clk 0:09:59.3]} 4... c5 {[%clk 0:09:57.7]} 5. c4 {[%clk 0:09:59.6]}
5... d6 {[%clk 0:09:56.8]} 6. Bg2 {[%clk 0:09:53.7]} 6... e5 {[%clk 0:09:56.2]}
7. d3 {[%clk 0:09:51]} 7... O-O {[%clk 0:09:56.8]} 8. O-O {[%clk 0:09:50.9]}
8... Nc6 {[%clk 0:09:58.1]} 9. Nc3 {[%clk 0:09:50.6]} 9... h6 {[%clk 0:09:57.2]}
10. e3 {[%clk 0:09:38]} 10... Be6 {[%clk 0:09:37.2]} 11. d4 {[%clk 0:08:40.4]}
11... cxd4 {[%clk 0:06:53.1]} 12. exd4 {[%clk 0:08:38.8]} 12... Bg4 {[%clk
0:06:54.3]} 13. h3 {[%clk 0:08:19.2]} 13... Bxf3 {[%clk 0:06:54.6]} 14. Bxf3
{[%clk 0:08:19.4]} 14... Qd7 {[%clk 0:06:06]} 15. dxe5 {[%clk 0:07:44.5]} 15...
Nxe5 {[%clk 0:06:03.8]} 16. Bg2 {[%clk 0:07:36.4]} 16... Rad8 {[%clk 0:05:45.3]}
17. Qc2 {[%clk 0:06:17.9]} 17... Rfe8 {[%clk 0:05:44.8]} 18. Rad1 {[%clk
0:06:17.1]} 18... Qc8 {[%clk 0:05:39.5]} 19. Nb5 {[%clk 0:05:55.7]} 19... d5
{[%clk 0:04:29.8]} 20. Nxa7 {[%clk 0:05:33.6]} 20... Qb8 {[%clk 0:03:43.1]} 21.
Nb5 {[%clk 0:05:26.1]} 21... dxc4 {[%clk 0:03:18.4]} 22. bxc4 {[%clk 0:05:24.5]}
22... h5 {[%clk 0:03:19.5]} 23. c5 {[%clk 0:04:53.7]} 23... Rxd1 {[%clk
0:02:05.4]} 24. Rxd1 {[%clk 0:04:46.6]} 24... h4 {[%clk 0:01:46]} 25. Nd6 {[%clk
0:04:40.8]} 25... Re7 {[%clk 0:01:46.6]} 26. g4 {[%clk 0:04:23.5]} 26... Qc7
{[%clk 0:00:27.7]} 27. Nb5 {[%clk 0:02:37.8]} 27... Qa5 {[%clk 0:00:27.9]} 28.
a4 {[%clk 0:02:32.8]} 28... Nfxg4 {[%clk 0:00:23.6]} 29. Bc3 {[%clk 0:02:26.2]}
29... Qa6 {[%clk 0:00:21.3]} 30. Rd6 {[%clk 0:01:16.1]} 30... Qa8 {[%clk
0:00:20.3]} 31. hxg4 {[%clk 0:01:16.1]} 31... Nxg4 {[%clk 0:00:21.1]} 32. Qd1
{[%clk 0:01:13.6]} 32... Bxc3 {[%clk 0:00:09.3]} 33. Rd8+ {[%clk 0:01:01.4]}
33... Kg7 {[%clk 0:00:08.5]} 34. Rxa8 {[%clk 0:00:56.2]} 34... Re1+ {[%clk
0:00:05.9]} 35. Qxe1 {[%clk 0:00:56.7]} 35... Bxe1 {[%clk 0:00:07.8]} 1-0